bitfinex/quotes_BTCUSD_20250617
["timestamp","ask_amount","ask_price","bid_price","bid_amount"]
[1750121051259,0.46758755,106850.0,106840.0,0.21574629]
[1750121051462,0.47694629,106850.0,106840.0,0.21574638]
[1750121051592,0.47694629,106850.0,106840.0,0.21574647]
[1750121051805,0.47694629,106850.0,106840.0,0.22510564]
[1750121052512,0.64540771,106850.0,106840.0,0.00047157]
[1750121052724,0.27423187,106850.0,106840.0,0.18766737]
[1750121052924,0.20727145,106850.0,106840.0,0.21574567]
[1750121053061,0.46758745,106850.0,106840.0,0.21574567]
[1750121053267,0.47694549,106850.0,106840.0,0.21574567]
[1750121053501,0.48630501,106850.0,106840.0,0.21574567]
[1750121053811,0.32102501,106850.0,106840.0,0.21574567]
[1750121054059,0.48630501,106850.0,106840.0,0.21574567]
[1750121054266,0.4769461,106850.0,106840.0,0.21574567]
[1750121054471,0.48630501,106850.0,106840.0,0.21574567]
[1750121054702,0.48630501,106850.0,106840.0,0.22510502]
[1750121055107,0.30230737,106850.0,106840.0,0.22510502]
[1750121055311,0.48626492,106850.0,106840.0,0.21574585]
[1750121055514,1.01344373,106850.0,106840.0,0.2063865]
[1750121055717,0.80754728,106850.0,106840.0,0.21574567]
[1750121055918,1.00408438,106850.0,106840.0,0.2063865]
[1750121056158,1.00408438,106850.0,106840.0,0.21574576]
[1750121056397,0.82626501,106850.0,106840.0,0.22510493]
[1750121056604,0.6516661,106850.0,106840.0,0.22510493]
[1750121056816,0.8169061,106850.0,106840.0,0.22510493]
[1750121057019,0.82626501,106850.0,106840.0,0.21574576]
[1750121057234,0.56594901,106850.0,106840.0,0.21574576]
[1750121057454,0.82626501,106850.0,106840.0,0.21574576]
[1750121058011,0.8169068,106850.0,106840.0,0.2063865]
[1750121058242,0.97600906,106850.0,106840.0,0.00047157]
[1750121059109,1.07225082,106850.0,106840.0,0.00047157]
[1750121059322,1.23150004,106850.0,106840.0,0.00047157]
[1750121059536,1.24604089,106850.0,106840.0,0.00047157]
[1750121061363,0.0624,106830.0,106800.0,0.18726489]
[1750121061576,0.29776408,106810.0,106800.0,0.25515825]
[1750121061782,0.22469646,106810.0,106800.0,0.24579575]
[1750121062028,0.20597277,106810.0,106800.0,0.0001416]
[1750121062219,0.46628877,106810.0,106800.0,0.0001416]
[1750121062460,0.80628877,106810.0,106800.0,0.0001416]
[1750121063070,0.80628877,106810.0,106800.0,0.0011416]
[1750121063279,0.79692662,106810.0,106800.0,0.0001416]
[1750121063781,0.79792662,106810.0,106800.0,0.0001416]
[1750121064013,0.80989236,106810.0,106800.0,0.0011416]
[1750121064469,0.80989236,106810.0,106800.0,0.0001416]
[1750121064692,0.97501236,106810.0,106800.0,0.0001416]
[1750121065390,0.98572819,106810.0,106800.0,0.0001416]
[1750121065610,1.24604419,106810.0,106800.0,0.0001416]
[1750121065843,0.82060819,106810.0,106800.0,0.0001416]
[1750121066071,0.66035897,106810.0,106800.0,0.0001416]
[1750121066317,0.92067497,106810.0,106800.0,0.0001416]
[1750121066544,0.63645588,106810.0,106800.0,0.20613383]
[1750121066769,0.55893868,106810.0,106800.0,0.0001416]
[1750121066987,0.3716903,106810.0,106800.0,0.20613383]
[1750121067203,0.3716903,106810.0,106800.0,0.21549686]
[1750121067436,0.3716903,106810.0,106800.0,0.0095048]
[1750121067437,0.56830057,106810.0,106800.0,0.0095048]
[1750121067636,0.38105202,106810.0,106800.0,0.25615936]
[1750121067848,0.66009276,106810.0,106800.0,0.20613383]
[1750121068072,0.5683011,106810.0,106800.0,0.21549677]
[1750121068274,0.64336872,106810.0,106800.0,0.21549677]
[1750121068490,0.38205272,106810.0,106800.0,0.22485962]
[1750121068922,0.88854703,106810.0,106800.0,0.0001416]
[1750121069154,0.82225486,106810.0,106800.0,0.0001416]
[1750121070264,0.56193886,106810.0,106800.0,0.0001416]
[1750121070482,0.82225486,106810.0,106800.0,0.0001416]
[1750121072229,0.56193886,106810.0,106800.0,0.0001416]
[1750121072446,0.82225486,106810.0,106800.0,0.0001416]
[1750121072684,0.8445584,106810.0,106800.0,0.0001416]
[1750121072907,1.31555486,106810.0,106800.0,0.0001416]
[1750121073143,1.05523886,106810.0,106800.0,0.0001416]
[1750121073358,1.33785764,106810.0,106800.0,0.0001416]
[1750121073577,1.33789127,106810.0,106800.0,0.0001416]
[1750121073799,1.07757527,106810.0,106800.0,0.0001416]
[1750121074014,1.33789127,106810.0,106800.0,0.0001416]
[1750121075741,1.07757527,106810.0,106800.0,0.0001416]
[1750121075961,1.33789127,106810.0,106800.0,0.0001416]
[1750121077741,1.32852894,106810.0,106800.0,0.0001416]
[1750121078387,1.09981294,106810.0,106800.0,0.0001416]
[1750121078602,1.59906077,106810.0,106800.0,0.0001416]
[1750121078811,1.1337237,106810.0,106800.0,0.0001416]
[1750121079014,1.29036214,106810.0,106800.0,0.0001416]
[1750121079226,0.9857357,106810.0,106800.0,0.0001416]
[1750121079637,0.74565848,106810.0,106800.0,0.0001416]
[1750121079849,0.9221357,106810.0,106800.0,0.0001416]
[1750121080914,1.03782422,106810.0,106800.0,0.0001416]
[1750121081521,0.95968337,106810.0,106800.0,0.0001416]
[1750121081747,0.86344161,106810.0,106800.0,0.0001416]
[1750121083573,0.60287587,106810.0,106800.0,0.22040751]
[1750121083796,0.83547868,106810.0,106800.0,0.239134]
[1750121084012,0.83547868,106810.0,106800.0,0.25786006]
[1750121084491,0.64823004,106810.0,106800.0,0.25786006]
[1750121084740,0.38766378,106810.0,106800.0,0.26722274]
[1750121084943,0.40638764,106810.0,106800.0,0.29872274]
[1750121085191,0.39702558,106810.0,106800.0,0.29872274]
[1750121085445,0.42511177,106810.0,106800.0,0.29872274]
[1750121085650,0.41574953,106810.0,106800.0,0.29872274]
[1750121085879,0.42511177,106810.0,106800.0,0.29872274]
[1750121086102,0.41574953,106810.0,106800.0,0.29872274]
[1750121086323,0.41574962,106810.0,106800.0,0.29872274]
[1750121086543,0.41374945,106810.0,106800.0,0.29872274]
[1750121086788,0.41174945,106810.0,106800.0,0.29872274]
[1750121087004,0.42111221,106810.0,106800.0,0.29872274]
[1750121087225,0.41174988,106810.0,106800.0,0.29872274]
[1750121087424,0.38366395,106810.0,106800.0,0.29872274]
[1750121087851,0.40238817,106810.0,106800.0,0.29872274]
[1750121088286,0.41175058,106810.0,106800.0,0.29872274]
[1750121088960,0.40238817,106810.0,106800.0,0.29872274]
[1750121089175,0.41175058,106810.0,106800.0,0.29872291]
[1750121089386,0.4117505,106810.0,106800.0,0.29872238]
[1750121089599,0.70027917,106810.0,106800.0,0.29872238]
[1750121090012,0.39302593,106810.0,106800.0,0.29872186]
[1750121090440,0.38366395,106810.0,106800.0,0.29872186]
[1750121090692,0.42098886,106810.0,106800.0,0.29872186]
[1750121093989,0.36233641,106810.0,106800.0,0.61404362]
[1750121094184,0.02233641,106810.0,106800.0,0.61404362]
[1750121094392,0.02233641,106810.0,106800.0,0.39496362]
[1750121094597,0.53998329,106830.0,106820.0,0.21531441]
[1750121094818,0.5717578,106830.0,106820.0,0.41681441]
[1750121095021,0.9117578,106830.0,106820.0,0.41681441]
[1750121095663,0.89315544,106830.0,106820.0,0.41681441]
[1750121095887,0.92111837,106830.0,106820.0,0.41681441]
[1750121096138,1.11133169,106830.0,106820.0,0.45709349]
[1750121096392,0.89915544,106830.0,106820.0,0.45709349]
[1750121096589,0.89915544,106830.0,106820.0,0.46645441]
[1750121098196,0.88043438,106830.0,106820.0,0.46645441]
[1750121098404,0.39649487,106830.0,106820.0,0.49885441]
[1750121098668,0.36472036,106830.0,106820.0,0.49885441]
[1750121098873,0.37408085,106830.0,106820.0,0.49885441]
[1750121099042,0.37108085,106830.0,106820.0,0.49885441]
[1750121099253,0.36808085,106830.0,106820.0,0.49885441]
[1750121099416,0.37008085,106830.0,106820.0,0.49885441]
[1750121099606,0.37208085,106830.0,106820.0,0.49885441]
[1750121100101,0.35336005,106830.0,106820.0,0.27961441]
[1750121100316,0.004,106830.0,106820.0,0.49849441]
[1750121100529,0.004,106830.0,106820.0,0.59473617]
[1750121101702,0.002,106830.0,106820.0,0.59473617]
[1750121101911,0.002,106830.0,106820.0,0.59477617]
[1750121102115,0.002,106830.0,106820.0,0.59677617]
[1750121102550,0.01135987,106830.0,106820.0,0.59677617]
[1750121102768,0.02808041,106830.0,106820.0,0.37785617]
[1750121102978,0.42361573,106830.0,106820.0,0.42683366]
[1750121103186,0.42361573,106830.0,106820.0,0.43619493]
[1750121103437,0.42361573,106830.0,106820.0,0.44655612]
[1750121103645,0.20593421,106830.0,106820.0,0.22767612]
[1750121103881,0.75423614,106840.0,106830.0,0.2059342]
[1750121104058,0.75423614,106840.0,106830.0,0.21529434]
[1750121104059,0.57640013,106840.0,106830.0,0.21529434]
[1750121104307,0.35871834,106840.0,106830.0,0.44373439]
[1750121104515,0.3774373,106840.0,106830.0,0.47513439]
[1750121104716,0.36807769,106840.0,106830.0,0.47513439]
[1750121104947,0.34,106840.0,106830.0,0.60177615]
[1750121105577,0.41419795,106860.0,106850.0,0.20589548]
[1750121105754,0.75419795,106860.0,106850.0,0.37541548]
[1750121106265,0.76621996,106860.0,106850.0,0.37541566]
[1750121106687,0.54854081,106860.0,106850.0,0.37541566]
[1750121106888,0.55154081,106860.0,106850.0,0.37555726]
[1750121107096,0.54218278,106860.0,106850.0,0.36619861]
[1750121107282,0.54518278,106860.0,106850.0,0.36619861]
[1750121107714,0.54518278,106860.0,106850.0,0.37555726]
[1750121107947,0.80543776,106860.0,106850.0,0.37555726]
[1750121108161,0.80543776,106860.0,106850.0,0.36619861]
[1750121108372,0.80543776,106860.0,106850.0,0.41579879]
[1750121108589,0.80543776,106860.0,106850.0,0.43451634]
[1750121109032,0.80543776,106860.0,106850.0,0.44387499]
[1750121109243,0.80543776,106860.0,106850.0,0.4438749]
[1750121109455,0.80543776,106860.0,106850.0,0.45323337]
[1750121109672,0.80543776,106860.0,106850.0,0.43439634]
[1750121110764,0.80543776,106860.0,106850.0,0.42503761]
[1750121111087,0.80543776,106860.0,106850.0,0.2191416]
[1750121111314,0.86703776,106860.0,106850.0,0.1695416]
[1750121112388,0.60678278,106860.0,106850.0,0.0001416]
[1750121112624,0.86703776,106860.0,106850.0,0.1694616]
[1750121113056,0.86703776,106860.0,106850.0,0.0001416]
[1750121113265,0.86703776,106860.0,106850.0,0.1694616]
[1750121114166,0.61614073,106860.0,106850.0,0.36599879]
[1750121114387,0.87639571,106860.0,106850.0,0.17882051]
[1750121114606,0.81479571,106860.0,106850.0,0.17882051]
[1750121115040,0.81479571,106860.0,106850.0,0.1694616]
[1750121115275,0.55454073,106860.0,106850.0,0.17882051]
[1750121115513,0.81479571,106860.0,106850.0,0.1694616]
[1750121115923,0.87639571,106860.0,106850.0,0.1694616]
[1750121116146,0.61614073,106860.0,106850.0,0.1694616]
[1750121116370,0.87639571,106860.0,106850.0,0.1694616]
[1750121116767,0.84609571,106860.0,106850.0,0.1694616]
[1750121116983,0.81479571,106860.0,106850.0,0.1694616]
[1750121117185,0.81479571,106860.0,106850.0,0.17882051]
[1750121117848,0.81479571,106860.0,106850.0,0.1694616]
[1750121118918,0.81479571,106860.0,106850.0,0.17882051]
[1750121119556,0.81479571,106860.0,106850.0,0.37535761]
[1750121119772,0.82415339,106860.0,106850.0,0.18817933]
[1750121119980,0.82415339,106860.0,106850.0,0.38471626]
[1750121120386,0.83351142,106860.0,106850.0,0.39407473]
[1750121121957,0.63699262,106860.0,106850.0,0.40343303]
[1750121122384,0.64635065,106860.0,106850.0,0.40343303]
[1750121122627,0.83351142,106860.0,106850.0,0.38471626]
[1750121122847,0.82415374,106860.0,106850.0,0.37535761]
[1750121123085,0.82415374,106860.0,106850.0,0.38471634]
[1750121123283,0.82415374,106860.0,106850.0,0.39407499]
[1750121123719,0.82415374,106860.0,106850.0,0.38403634]
[1750121124273,0.82415374,106860.0,106850.0,0.21539634]
[1750121124502,0.87639579,106860.0,106850.0,0.17806051]
[1750121124732,0.81479579,106860.0,106850.0,0.37459761]
[1750121124958,0.63699236,106860.0,106850.0,0.40267303]
[1750121125201,0.6436859,106860.0,106850.0,0.40267303]
[1750121125456,0.346,106860.0,106850.0,0.40267303]
[1750121125709,0.006,106860.0,106850.0,0.51605303]
[1750121125942,0.006,106860.0,106850.0,0.61229479]
[1750121126168,0.006,106860.0,106850.0,0.63229479]
[1750121126640,0.003,106860.0,106850.0,0.89254977]
[1750121126877,0.003,106860.0,106850.0,1.09354977]
[1750121127096,0.003,106860.0,106850.0,1.29354977]
[1750121127321,0.003,106860.0,106850.0,1.07510977]
[1750121127536,0.34,106880.0,106870.0,0.21521368]
[1750121127782,0.34,106880.0,106870.0,0.44711368]
[1750121128977,0.34,106880.0,106870.0,0.49643368]
[1750121129929,0.10264122,106890.0,106880.0,0.21519353]
[1750121130164,0.8333,106900.0,106890.0,0.21517341]
[1750121130413,0.8333,106900.0,106890.0,0.27787341]
[1750121130665,0.4933,106900.0,106890.0,0.27787341]
[1750121130903,0.4933,106900.0,106890.0,0.43361341]
[1750121130904,0.7013374,106900.0,106890.0,0.43361341]
[1750121131140,0.4933,106900.0,106890.0,0.60664048]
[1750121131365,0.23162579,106920.0,106910.0,0.21513315]
[1750121131601,0.22721298,106920.0,106910.0,0.38425315]
[1750121131824,0.20850873,106920.0,106910.0,0.38425315]
[1750121132053,0.00047133,106920.0,106910.0,0.38425315]
[1750121132279,0.00047133,106920.0,106910.0,0.46581315]
[1750121132502,0.00047133,106920.0,106910.0,0.49821315]
[1750121132738,0.0098235,106920.0,106910.0,0.52679628]
[1750121133022,0.00935427,106900.0,106890.0,0.09824176]
[1750121133247,0.87085775,106900.0,106890.0,0.002]
[1750121133474,0.9799,106900.0,106890.0,0.002]
[1750121133926,0.6280805,106900.0,106890.0,0.20781853]
[1750121134151,0.82723527,106900.0,106890.0,0.20781853]
[1750121134380,0.34935497,106890.0,106880.0,0.26455086]
[1750121134634,0.61872762,106890.0,106880.0,0.52995262]
[1750121134856,0.35870976,106890.0,106880.0,0.52995262]
[1750121135553,0.62808224,106890.0,106880.0,0.52995262]
[1750121135768,0.63843747,106890.0,106880.0,0.52995262]
[1750121136198,0.63843747,106890.0,106880.0,0.31143262]
[1750121136419,0.63843747,106890.0,106880.0,0.52975262]
[1750121136641,0.63843747,106890.0,106880.0,0.53075262]
[1750121136908,0.6384373,106890.0,106880.0,0.53075262]
[1750121137133,0.81619171,106890.0,106880.0,0.22847628]
[1750121137358,0.80683665,106890.0,106880.0,0.06907247]
[1750121137577,0.82888142,106890.0,106880.0,0.22839628]
[1750121137813,0.82888142,106890.0,106880.0,0.41552202]
[1750121138031,0.79748142,106890.0,106880.0,0.42487813]
[1750121138933,0.79748142,106890.0,106880.0,0.41552202]
[1750121139151,0.79748142,106890.0,106880.0,0.22839628]
[1750121139368,0.85948142,106890.0,106880.0,0.22839628]
[1750121139583,0.85948142,106890.0,106880.0,0.23775247]
[1750121140038,0.85948142,106890.0,106880.0,0.43423423]
[1750121140480,0.82808142,106890.0,106880.0,0.001]
[1750121140732,0.85948142,106890.0,106880.0,0.16936]
[1750121141398,0.85948142,106890.0,106880.0,0.001]
[1750121142499,0.85948142,106890.0,106880.0,0.19748193]
[1750121142925,0.53746356,106890.0,106880.0,0.19748193]
[1750121143137,0.79748142,106890.0,106880.0,0.19748193]
[1750121143791,0.79748142,106890.0,106880.0,0.001]
[1750121146133,0.79748142,106890.0,106880.0,0.01035628]
[1750121146341,0.79748142,106890.0,106880.0,0.001]
[1750121146781,0.86188142,106890.0,106880.0,0.001]
[1750121148123,0.82998142,106890.0,106880.0,0.001]
[1750121148327,0.79748142,106890.0,106880.0,0.001]
[1750121148739,0.79748142,106890.0,106880.0,0.20683804]
[1750121148924,0.79748142,106890.0,106880.0,0.19748193]
[1750121149120,0.79748142,106890.0,106880.0,0.01971247]
[1750121149328,0.79748142,106890.0,106880.0,0.01035628]
[1750121149547,0.79748142,106890.0,106880.0,0.01971247]
[1750121149772,0.79748142,106890.0,106880.0,0.21619423]
[1750121150419,0.79748142,106890.0,106880.0,0.20683821]
[1750121150633,0.79748142,106890.0,106880.0,0.21619432]
[1750121151176,0.60101786,106890.0,106880.0,0.21619432]
[1750121151389,0.56552856,106890.0,106880.0,0.38311432]
[1750121151604,0.56552856,106890.0,106880.0,0.40182618]
[1750121151824,0.35970968,106890.0,106880.0,0.40182557]
[1750121152034,0.62908268,106890.0,106880.0,0.40182557]
[1750121152245,0.61972745,106890.0,106880.0,0.40182557]
[1750121152456,0.35970959,106890.0,106880.0,0.40182557]
[1750121152665,0.35035488,106890.0,106880.0,0.43242557]
[1750121153306,0.36906447,106890.0,106880.0,0.43242557]
[1750121153514,0.36906447,106890.0,106880.0,0.48146557]
[1750121153733,0.6477927,106890.0,106880.0,0.48146557]
[1750121154150,0.6477934,106890.0,106880.0,0.48146557]
[1750121154361,0.6477934,106890.0,106880.0,0.45086557]
[1750121154991,0.62908277,106890.0,106880.0,0.45086557]
[1750121155831,0.638438,106890.0,106880.0,0.45086557]
[1750121156321,0.64779332,106890.0,106880.0,0.45086557]
[1750121156526,0.64779385,106890.0,106880.0,0.45086557]
[1750121156972,0.57714901,106890.0,106880.0,0.45086557]
[1750121157273,0.35971003,106890.0,106880.0,0.45086557]
[1750121157487,0.57714901,106890.0,106880.0,0.45086557]
[1750121157704,0.56779378,106890.0,106880.0,0.45086557]
[1750121158141,0.35970968,106890.0,106880.0,0.48416557]
[1750121158403,0.56779343,106890.0,106880.0,0.51446557]
[1750121158843,0.35970968,106890.0,106880.0,0.51446557]
[1750121159061,0.56779334,106890.0,106880.0,0.51446557]
[1750121159273,0.55843846,106890.0,106880.0,0.51446557]
[1750121159524,0.001,106890.0,106880.0,0.61070733]
[1750121159994,0.20908375,106890.0,106880.0,0.61070733]
[1750121162433,0.001,106890.0,106880.0,0.61070733]
[1750121162886,0.001,106890.0,106880.0,0.81879108]
[1750121163112,0.001,106890.0,106880.0,0.83879108]
[1750121163342,0.00091323,106890.0,106880.0,0.83879108]
[1750121164605,0.56678966,106910.0,106900.0,0.24565327]
[1750121164821,0.01870784,106900.0,106890.0,0.26630305]
[1750121165031,0.21743758,106900.0,106890.0,0.51564481]
[1750121165261,0.20808375,106900.0,106890.0,0.54774481]
[1750121165693,0.21743767,106900.0,106890.0,0.51564481]
[1750121165908,0.21743758,106900.0,106890.0,0.51564481]
[1750121166394,0.22679159,106900.0,106890.0,0.30404481]
[1750121166614,0.77259112,106900.0,106890.0,0.004]
[1750121166829,1.02486703,106900.0,106890.0,0.004]
[1750121167040,0.81678328,106900.0,106890.0,0.17004]
[1750121167689,0.81678328,106900.0,106890.0,0.004]
[1750121167901,0.81678328,106900.0,106890.0,0.2176]
[1750121168328,0.81678328,106900.0,106890.0,0.2156]
[1750121168537,0.81678328,106900.0,106890.0,0.2146]
[1750121169241,0.81778328,106900.0,106890.0,0.2146]
[1750121169459,1.02586703,106900.0,106890.0,0.16604]
[1750121169894,1.02686703,106900.0,106890.0,0.16604]
[1750121170106,0.81878328,106900.0,106890.0,0.16604]
[1750121170550,0.53646365,106890.0,106880.0,0.23468574]
[1750121170768,0.00935584,106880.0,106870.0,0.1964998]
[1750121170985,0.42501799,106880.0,106870.0,0.24406023]
[1750121171213,0.42327763,106880.0,106870.0,0.42881376]
[1750121171874,0.00935558,106880.0,106870.0,0.43817031]
[1750121172122,0.2472474,106880.0,106870.0,0.22471191]
[1750121172340,0.25486393,106880.0,106870.0,0.43831191]
[1750121172585,0.772634,106880.0,106870.0,0.0001416]
[1750121172824,0.81662196,106880.0,106870.0,0.0001416]
[1750121173061,1.32196209,106880.0,106870.0,0.0041416]
[1750121173808,1.11387834,106880.0,106870.0,0.0041416]
[1750121174023,1.32196209,106880.0,106870.0,0.0041416]
[1750121174249,1.32196209,106880.0,106870.0,0.0021416]
[1750121174250,1.4327447,106880.0,106870.0,0.0021416]
[1750121174476,1.4337447,106880.0,106870.0,0.0021416]
[1750121174716,1.4337447,106880.0,106870.0,0.0001416]
[1750121174953,1.74618831,106880.0,106870.0,0.0001416]
[1750121175173,1.74718831,106880.0,106870.0,0.0001416]
[1750121175425,2.00937753,106880.0,106870.0,0.0001416]
[1750121175663,1.93562509,106880.0,106870.0,0.0001416]
[1750121176563,1.41992831,106880.0,106870.0,0.0001416]
[1750121177039,1.44232512,106880.0,106870.0,0.0001416]
[1750121177733,1.25388831,106880.0,106870.0,0.0001416]
[1750121177953,1.44232425,106880.0,106870.0,0.0001416]
[1750121178397,1.44032425,106880.0,106870.0,0.0001416]
[1750121178584,1.41792831,106880.0,106870.0,0.0001416]
[1750121178717,1.42292831,106880.0,106870.0,0.0001416]
[1750121179363,1.46271396,106880.0,106870.0,0.0001416]
[1750121184865,1.51271396,106880.0,106870.0,0.0001416]
[1750121185502,1.54082896,106880.0,106870.0,0.0001416]
[1750121186628,1.37478896,106880.0,106870.0,0.0001416]
[1750121186840,1.28500331,106880.0,106870.0,0.0001416]
[1750121187052,1.01019878,106880.0,106870.0,0.0001416]
[1750121187253,1.17619878,106880.0,106870.0,0.0001416]
[1750121187427,1.11728378,106880.0,106870.0,0.0001416]
[1750121187588,1.42418831,106880.0,106870.0,0.0001416]
[1750121190185,1.52033753,106880.0,106870.0,0.0001416]
[1750121190842,1.25818831,106880.0,106870.0,0.0001416]
[1750121191534,1.16388463,106880.0,106870.0,0.0001416]
[1750121192001,0.91938378,106880.0,106870.0,0.0001416]
[1750121192192,0.82314202,106880.0,106870.0,0.0324416]
[1750121192439,0.82314202,106880.0,106870.0,0.0632416]
[1750121192655,0.82314202,106880.0,106870.0,0.07259876]
[1750121192873,0.82314202,106880.0,106870.0,0.08195583]
[1750121193089,0.81378583,106880.0,106870.0,0.07259876]
[1750121193308,0.81378583,106880.0,106870.0,0.26909899]
[1750121194023,0.62466009,106880.0,106870.0,0.26909899]
[1750121194229,0.63101611,106880.0,106870.0,0.27845571]
[1750121194436,0.81914185,106880.0,106870.0,0.27845571]
[1750121195064,0.81914185,106880.0,106870.0,0.0632416]
[1750121195271,0.54952215,106880.0,106870.0,0.22894183]
[1750121195482,0.37175191,106880.0,106870.0,0.27845519]
[1750121195900,0.39046342,106880.0,106870.0,0.27845519]
[1750121196121,0.57758986,106880.0,106870.0,0.26909864]
[1750121196343,0.82849778,106880.0,106870.0,0.26909864]
[1750121196589,0.83785406,106880.0,106870.0,0.25974183]
[1750121196813,0.82849813,106880.0,106870.0,0.19664183]
[1750121197272,0.81914202,106880.0,106870.0,0.0476216]
[1750121197485,0.81914202,106880.0,106870.0,0.24412183]
[1750121197707,0.55887834,106880.0,106870.0,0.25347855]
[1750121197923,0.63201593,106880.0,106870.0,0.3239351]
[1750121198127,0.64137152,106880.0,106870.0,0.3239351]
[1750121198747,0.6507278,106880.0,106870.0,0.3239351]
[1750121198960,0.5892267,106880.0,106870.0,0.3239351]
[1750121199379,0.78570872,106880.0,106870.0,0.30522183]
[1750121199493,0.77635305,106880.0,106870.0,0.30522183]
[1750121200217,0.75764101,106880.0,106870.0,0.1087216]
[1750121200399,0.75764101,106880.0,106870.0,0.2437016]
[1750121200639,0.75764101,106880.0,106870.0,0.25305867]
[1750121201065,0.75764101,106880.0,106870.0,0.44020192]
[1750121201278,0.76699703,106880.0,106870.0,0.49091554]
[1750121201691,0.58922696,106880.0,106870.0,0.50027209]
[1750121201892,0.59858324,106880.0,106870.0,0.50027209]
[1750121202097,0.57987077,106880.0,106870.0,0.50027209]
[1750121202307,0.22115899,106880.0,106870.0,0.50027209]
[1750121202524,0.001,106880.0,106870.0,0.50027209]
[1750121202741,0.001,106880.0,106870.0,0.59651385]
[1750121203432,0.34,106890.0,106880.0,0.27819353]
[1750121203654,0.34,106890.0,106880.0,0.54027529]
[1750121204153,0.01225201,106900.0,106890.0,0.27927341]
[1750121204370,0.38031421,106900.0,106890.0,0.27927341]
[1750121204584,0.58553542,106900.0,106890.0,0.49255341]
[1750121205028,0.21495451,106920.0,106900.0,0.25954465]
[1750121205250,0.51240098,106920.0,106910.0,0.21513333]
[1750121205477,0.5030489,106920.0,106900.0,0.26889839]
[1750121205704,0.35870643,106910.0,106900.0,0.26889839]
[1750121205927,0.35870643,106910.0,106900.0,0.36514015]
[1750121205928,0.34,106910.0,106900.0,0.36514015]
[1750121206141,0.34935304,106910.0,106900.0,0.36514015]
[1750121206349,0.35870617,106910.0,106900.0,0.36514015]
[1750121206555,0.34047133,106910.0,106900.0,0.36514015]
[1750121206766,0.34982429,106910.0,106900.0,0.36514015]
[1750121206974,0.36853064,106910.0,106900.0,0.36614015]
[1750121207185,0.36853064,106910.0,106900.0,0.36714015]
[1750121207419,0.34047133,106910.0,106900.0,0.36714015]
[1750121207839,0.34047133,106910.0,106900.0,0.58038015]
[1750121208473,0.34982437,106910.0,106900.0,0.58038015]
[1750121208686,0.35917759,106910.0,106900.0,0.58038015]
[1750121209352,0.34982437,106910.0,106900.0,0.58038015]
[1750121210392,0.34047133,106910.0,106900.0,0.58038015]
[1750121210596,0.00047133,106910.0,106900.0,0.58038015]
[1750121211228,0.00047133,106910.0,106900.0,0.36714015]
[1750121211447,0.00982429,106910.0,106900.0,0.58030015]
[1750121211656,0.01917751,106910.0,106900.0,0.58030059]
[1750121212509,0.01917751,106910.0,106900.0,0.36714059]
[1750121212722,0.01917751,106910.0,106900.0,0.04944]
[1750121212723,0.46802995,106910.0,106900.0,0.04944]
[1750121212992,0.86758959,106910.0,106900.0,0.002]
[1750121213840,0.53645562,106900.0,106880.0,0.24829275]
[1750121214067,0.82630716,106890.0,106880.0,0.3495198]
[1750121214287,0.8245668,106890.0,106880.0,0.5151998]
[1750121214500,0.8245668,106890.0,106880.0,0.43766981]
[1750121215479,0.8245668,106890.0,106880.0,0.44702548]
[1750121215480,0.35870968,106890.0,106880.0,0.44702548]
[1750121215691,0.34,106890.0,106880.0,0.47772548]
[1750121215894,0.35870941,106890.0,106880.0,0.47772548]
[1750121216099,0.36806438,106890.0,106880.0,0.47972548]
[1750121216556,0.35870941,106890.0,106880.0,0.48172548]
[1750121216756,0.38677476,106890.0,106880.0,0.44166964]
[1750121216989,0.37741944,106890.0,106880.0,0.45102531]
[1750121217206,0.35870941,106890.0,106880.0,0.45102531]
[1750121217413,0.36806438,106890.0,106880.0,0.45102531]
[1750121217627,0.63745785,106890.0,106880.0,0.45102531]
[1750121217838,0.62810271,106890.0,106880.0,0.45102531]
[1750121218045,0.62810271,106890.0,106880.0,0.28534531]
[1750121218259,0.61874774,106890.0,106880.0,0.45102531]
[1750121218478,0.00047133,106910.0,106900.0,0.02806254]
[1750121218716,0.00047133,106910.0,106900.0,0.61566375]
[1750121218944,0.00047133,106910.0,106900.0,0.87570208]
[1750121219449,0.00047133,106910.0,106900.0,1.09334208]
[1750121219670,0.00147133,106910.0,106900.0,1.09334208]
[1750121219886,0.00247133,106910.0,106900.0,1.12788293]
[1750121220313,0.00147133,106910.0,106900.0,1.12988293]
[1750121220528,0.00047133,106910.0,106900.0,1.12788293]
[1750121220739,0.00047133,106910.0,106900.0,1.13088293]
[1750121220959,0.00047133,106910.0,106900.0,0.63897588]
[1750121221168,0.00047133,106910.0,106900.0,0.85189588]
[1750121221372,0.00047133,106910.0,106900.0,0.99731503]
[1750121221790,0.00047133,106910.0,106900.0,0.79731503]
[1750121222013,0.00047133,106910.0,106900.0,0.79431503]
[1750121222229,0.00047133,106910.0,106900.0,0.78631503]
[1750121222443,0.00047133,106910.0,106900.0,0.62571503]
[1750121222629,0.00047133,106910.0,106900.0,0.79531503]
[1750121222865,0.00047133,106910.0,106900.0,0.79031503]
[1750121223406,0.00047133,106910.0,106900.0,0.79431503]
[1750121223628,0.00047133,106910.0,106900.0,1.05435336]
[1750121226315,0.00047133,106910.0,106900.0,1.08889421]
[1750121226536,0.00047133,106910.0,106900.0,1.10889421]
[1750121226756,0.00047133,106910.0,106900.0,1.49889421]
[1750121228987,0.00047133,106910.0,106900.0,2.65583921]
[1750121229198,0.00047133,106910.0,106900.0,2.56387321]
[1750121229845,0.00047133,106910.0,106900.0,2.56487321]
[1750121230279,0.00047133,106910.0,106900.0,2.59343756]
[1750121230708,0.00047133,106910.0,106900.0,2.38055756]
[1750121230918,0.00047133,106910.0,106900.0,2.03408056]
[1750121233052,0.00047133,106910.0,106900.0,1.84361756]
[1750121234800,0.00047133,106910.0,106900.0,1.17325923]
[1750121235023,0.00047133,106910.0,106900.0,0.96546023]
[1750121235276,0.00047133,106910.0,106900.0,0.95091938]
[1750121235513,0.00047133,106910.0,106900.0,1.36355938]
[1750121235757,0.00047133,106910.0,106900.0,1.37810023]
[1750121235968,0.00047133,106910.0,106900.0,1.16546023]
[1750121236183,0.00047133,106910.0,106900.0,0.32039503]
[1750121236415,0.00047133,106910.0,106900.0,0.36763503]
[1750121236682,0.00047133,106910.0,106900.0,0.53303503]
[1750121237775,0.00047133,106910.0,106900.0,0.53299503]
[1750121239268,0.00047133,106910.0,106900.0,0.53280659]
[1750121240257,0.00047133,106910.0,106900.0,0.32020659]
[1750121240493,0.3431562,106910.0,106900.0,0.53299503]
[1750121240725,0.54719603,106910.0,106900.0,0.42739944]
[1750121240959,0.53784307,106910.0,106900.0,0.25268517]
[1750121241169,0.34141627,106910.0,106900.0,0.43675345]
[1750121241380,0.34141584,106910.0,106900.0,0.43810737]
[1750121241584,0.54719595,106910.0,106900.0,0.42875362]
[1750121241821,0.53784299,106910.0,106900.0,0.44010771]
[1750121242058,0.85913646,106910.0,106900.0,0.004]
[1750121242296,0.85913646,106910.0,106900.0,0.16932]
[1750121242924,0.59909813,106910.0,106900.0,0.16932]